bitfinex/quotes_ETHUSD_20260216
["timestamp","ask_amount","ask_price","bid_price","bid_amount"]
[1771216482064,1.179,1967.2,1966.7,0.4993482]
[1771216482361,1.179,1967.2,1967.0,0.001]
[1771216482941,1.179,1967.2,1966.8,0.001]
[1771216483957,1.179,1967.2,1966.8,0.46546675]
[1771216484650,7.76552046,1967.3,1966.8,0.46546675]
[1771216485233,7.76552046,1967.3,1966.8,0.001]
[1771216485435,8.19889539,1967.3,1966.8,0.001]
[1771216487872,0.43337493,1967.2,1966.8,0.001]
[1771216488062,7.76552046,1967.3,1966.8,0.001]
[1771216489870,8.19889539,1967.3,1966.8,0.001]
[1771216491273,0.43337493,1967.2,1966.8,0.001]
[1771216491458,7.76552046,1967.1,1966.8,0.001]
[1771216491774,8.19889539,1966.9,1966.2,0.47186493]
[1771216491975,7.76552046,1966.7,1966.2,0.47186493]
[1771216492160,7.76552046,1966.5,1966.0,1.55940379]
[1771216492468,1.187,1966.7,1966.1,0.47186493]
[1771216492469,8.95252046,1966.7,1966.1,0.47186493]
[1771216493238,8.68152046,1967.1,1966.2,0.47186493]
[1771216493488,1.188,1967.0,1966.4,0.47186493]
[1771216495300,7.76552046,1966.9,1966.1,9.32538539]
[1771216495513,7.76552046,1966.9,1966.2,0.47286493]
[1771216495514,8.19889539,1966.9,1966.2,0.47286493]
[1771216496001,0.0011,1966.7,1966.2,0.47286493]
[1771216500928,0.0011,1966.7,1966.4,0.47186493]
[1771216501618,0.0011,1966.7,1966.2,0.001]
[1771216502031,0.43447493,1966.7,1966.2,0.001]
[1771216502305,8.19889539,1966.6,1966.2,0.001]
[1771216502980,7.76662046,1966.7,1966.2,0.001]
[1771216503584,0.0011,1966.7,1966.2,0.47286493]
[1771216505626,0.0011,1966.7,1966.3,7.76552046]
[1771216505797,8.95752046,1967.3,1966.4,0.47186493]
[1771216505996,8.95752046,1967.3,1966.5,0.47186493]
[1771216506799,8.95752046,1967.3,1966.6,0.47186493]
[1771216507101,1.192,1967.3,1966.6,0.47186493]
[1771216507609,8.19999539,1967.5,1966.6,0.47186493]
[1771216507811,8.96062046,1967.5,1966.6,0.47186493]
[1771216508012,0.0011,1967.5,1967.0,0.47186493]
[1771216509924,0.0011,1967.5,1967.2,0.47186493]
[1771216510428,0.0011,1967.4,1967.2,0.47186493]
[1771216513627,0.0011,1967.4,1967.3,1.1]
[1771216513836,0.0011,1967.4,1967.3,1.55872116]
[1771216519567,0.0011,1967.4,1967.3,1.1]
[1771216520270,0.0011,1967.5,1967.4,0.45872116]
[1771216521844,0.0011,1967.8,1967.4,0.45872116]
[1771216523949,0.0011,1967.7,1967.4,0.45872116]
[1771216531351,0.0011,1967.7,1967.3,1.1]
[1771216531771,0.0011,1967.7,1967.2,1.56372116]
[1771216536374,0.43447493,1967.6,1967.2,1.105]
[1771216536977,8.20109539,1967.7,1967.3,0.001]
[1771216541065,0.43447493,1967.6,1967.3,0.001]
[1771216541755,7.76662046,1967.7,1967.0,0.001]
[1771216541756,7.76552046,1967.5,1967.0,0.001]
[1771216541958,0.43447493,1967.4,1967.0,0.001]
[1771216542181,0.43447493,1967.4,1966.8,2.02]
[1771216542395,8.19869974,1967.3,1966.8,0.915]
[1771216542755,7.76422481,1967.5,1966.8,0.45872116]
[1771216543198,0.43447493,1967.4,1966.8,0.45872116]
[1771216545282,0.43447493,1967.2,1966.7,0.001]
[1771216547284,7.76422481,1967.3,1966.7,0.48777968]
[1771216547481,0.43447493,1967.4,1966.7,0.48777968]
[1771216547654,1.62347493,1967.3,1966.7,0.48777968]
[1771216547856,9.38769974,1967.3,1966.7,0.48777968]
[1771216549663,0.43447493,1967.6,1966.8,0.48677968]
[1771216549859,0.43447493,1967.4,1966.8,0.48677968]
[1771216550388,8.95522481,1967.5,1966.8,0.48677968]
[1771216550585,8.95522481,1967.5,1966.8,0.48777968]
[1771216550586,9.38969974,1967.5,1966.8,0.48777968]
[1771216554467,1.191,1967.5,1966.8,0.48777968]
[1771216555581,0.43447493,1967.4,1966.8,0.48777968]
[1771216558304,9.38969974,1967.5,1966.8,0.48777968]
[1771216561817,1.191,1967.5,1966.8,0.48777968]
[1771216562023,1.1951,1967.6,1967.0,0.48677968]
[1771216562686,0.0011,1967.4,1967.0,0.48677968]
[1771216564617,8.19979974,1967.4,1966.9,0.001]
[1771216566318,0.0011,1967.4,1966.9,0.48777968]
[1771216570400,0.43447493,1967.3,1966.9,0.001]
[1771216570617,8.19869974,1967.2,1966.9,0.001]
[1771216570926,0.43447493,1967.1,1966.9,0.001]
[1771216575926,7.76422481,1967.0,1966.7,0.001]
[1771216576817,8.96022481,1967.0,1966.7,0.001]
[1771216577342,9.39469974,1967.0,1966.7,0.001]
[1771216578206,9.39469974,1967.0,1966.9,0.001]
[1771216578406,9.39469974,1967.0,1966.7,0.001]
[1771216583035,1.2,1966.9,1966.7,0.001]
[1771216583845,1.203,1967.1,1966.7,0.001]
[1771216585235,7.76422481,1967.0,1966.7,0.001]
[1771216585436,8.19869974,1967.0,1966.7,0.001]
[1771216586834,9.40269974,1967.0,1966.7,0.001]
[1771216587752,8.96822481,1967.0,1966.7,0.001]
[1771216590341,8.96822481,1967.0,1966.8,0.001]
[1771216590724,0.0011,1966.9,1966.8,0.001]
[1771216593326,0.43557493,1966.9,1966.6,0.001]
[1771216593526,7.76422481,1966.8,1966.6,0.001]
[1771216593846,0.0011,1966.9,1966.6,0.001]
[1771216594052,0.0011,1966.9,1966.6,0.498289]
[1771216594848,7.76532481,1966.9,1966.6,0.001]
[1771216595431,0.0011,1966.9,1966.6,0.498289]
[1771216595962,1.2141,1966.9,1966.6,0.498289]
[1771216603944,0.0011,1966.9,1966.6,0.498289]
[1771216604144,0.0011,1967.0,1966.7,0.45916909]
[1771216604545,0.0011,1967.0,1966.7,0.46016909]
[1771216604773,0.0011,1966.8,1966.7,0.46016909]
[1771216608066,0.0011,1966.8,1966.7,0.001]
[1771216608252,0.0011,1966.8,1966.7,0.46296964]
[1771216610680,0.0011,1966.8,1966.7,0.001]
[1771216611367,0.0011,1966.8,1966.7,0.46296964]
[1771216611762,0.0011,1967.0,1966.8,0.46196964]
[1771216611966,0.0011,1967.0,1966.7,0.001]
[1771216612371,0.0011,1967.0,1966.7,0.46296964]
[1771216615786,0.0011,1967.0,1966.8,0.46196964]
[1771216618877,0.0011,1967.0,1966.8,0.46296964]
[1771216619083,0.0011,1967.3,1967.0,0.46196964]
[1771216619283,0.0011,1967.2,1967.0,0.46196964]
[1771216620867,0.0011,1967.4,1967.2,0.46196964]
[1771216623294,0.0011,1967.4,1967.1,1.099]
[1771216624684,0.0011,1967.4,1967.2,0.46196964]
[1771216624882,0.0011,1967.6,1967.4,0.46196964]
[1771216625256,0.0011,1967.6,1967.4,1.56496964]
[1771216625885,0.0011,1967.8,1967.6,0.46196964]
[1771216626491,0.0011,1967.8,1967.5,8.22998719]
[1771216627491,0.0011,1967.8,1967.6,0.46196964]
[1771216629296,0.0011,1967.8,1967.7,1.107]
[1771216629802,0.00263886,1968.0,1967.7,1.107]
[1771216630675,0.00263886,1968.0,1967.7,1.108]
[1771216630903,0.00263886,1968.0,1967.7,1.56996964]
[1771216631298,0.0011,1967.8,1967.7,1.56996964]
[1771216634112,0.00263886,1968.0,1967.7,1.56996964]
[1771216636411,0.00263886,1968.0,1967.7,1.108]
[1771216639225,0.43931379,1968.0,1967.7,1.108]
[1771216639400,8.20469248,1967.9,1967.5,1.116]
[1771216639599,0.43667493,1967.9,1967.5,1.116]
[1771216640429,0.43931379,1968.0,1967.5,1.116]
[1771216640641,0.00263886,1968.0,1967.6,0.49223626]
[1771216642695,0.43931379,1968.0,1967.5,1.116]
[1771216643046,0.43931379,1968.0,1967.5,0.001]
[1771216643192,0.43931379,1968.0,1967.7,0.001]
[1771216643389,0.0011,1967.9,1967.7,0.001]
[1771216643593,0.43777493,1967.9,1967.7,0.001]
[1771216647119,0.43667493,1967.7,1967.5,0.001]
[1771216649912,1.64367493,1967.7,1967.5,0.001]
[1771216650113,0.43667493,1967.6,1967.5,0.001]
[1771216651408,0.43667493,1967.6,1967.0,2.52223626]
[1771216651409,0.43667493,1967.5,1967.0,2.03]
[1771216651619,0.43667493,1967.3,1966.8,0.001]
[1771216653352,0.43667493,1967.1,1966.8,0.001]
[1771216653658,1.21,1967.3,1966.8,0.001]
[1771216656431,1.21,1967.3,1966.8,0.49323626]
[1771216656633,1.211,1967.3,1966.8,0.49323626]
[1771216663484,7.76801755,1967.1,1966.8,0.001]
[1771216663854,8.20296241,1967.2,1966.8,0.001]
[1771216664280,1.211,1967.4,1966.9,0.49302313]
[1771216666287,8.20296241,1967.6,1966.9,0.49302313]
[1771216666488,9.41496241,1967.6,1966.9,0.49302313]
[1771216666791,8.97828748,1967.6,1966.9,0.49302313]
[1771216667573,8.97828748,1967.6,1966.9,0.49402313]
[1771216667782,0.0011,1967.3,1966.9,0.49402313]
[1771216670091,0.0011,1967.3,1967.0,0.46994569]
[1771216670276,0.0011,1967.6,1967.2,0.46994569]
[1771216671476,0.0011,1967.9,1967.5,0.46994569]
[1771216673296,0.0011,1967.9,1967.7,0.46994569]
[1771216673681,0.0011,1968.1,1967.7,0.46994569]
[1771216679320,0.0011,1968.1,1967.5,0.46994569]
[1771216679496,7.76628748,1967.8,1967.3,0.46994569]
[1771216679695,0.43777493,1967.9,1967.3,1.58794569]
[1771216679900,0.43777493,1967.9,1967.6,0.001]
[1771216682220,7.76738748,1968.0,1967.6,0.001]
[1771216682612,8.20516241,1968.0,1967.6,0.001]
[1771216686533,0.0011,1968.0,1967.6,0.001]
[1771216686903,0.0011,1968.0,1967.6,0.47094569]
[1771216692323,0.0011,1968.0,1967.8,0.46994569]
[1771216692530,0.0011,1967.9,1967.8,0.46994569]
[1771216697940,0.0011,1968.0,1967.8,0.46994569]
[1771216698734,0.0011,1968.0,1967.7,0.001]
[1771216701555,0.43887493,1968.0,1967.7,0.001]
[1771216701734,0.0011,1968.0,1967.7,0.001]
[1771216704043,0.0011,1967.9,1967.7,0.001]
[1771216704356,0.43887493,1967.9,1967.7,0.001]
[1771216704557,0.43887493,1967.9,1967.5,0.001]
[1771216706862,7.76628748,1967.8,1967.5,0.001]
[1771216712938,8.20406241,1967.8,1967.5,0.001]
[1771216713369,0.43777493,1967.7,1967.5,0.001]
[1771216713562,1.66577493,1967.7,1967.5,0.001]
[1771216716370,1.66577493,1967.7,1967.6,0.001]
[1771216716551,1.66577493,1967.7,1967.4,0.001]
[1771216719067,1.228,1967.7,1967.4,0.001]
[1771216719371,1.228,1967.7,1967.4,0.47698851]
[1771216719748,0.0011,1967.9,1967.5,0.47598851]
[1771216720552,0.0011,1967.9,1967.4,7.76728748]
[1771216720553,0.0011,1967.9,1967.6,7.76628748]
[1771216720752,0.0011,1967.9,1967.7,0.47598851]
[1771216722781,0.0011,1967.9,1967.5,0.47598851]
[1771216723281,0.0011,1967.9,1967.4,0.47698851]
[1771216725351,8.19881346,1967.9,1967.4,0.001]
[1771216727574,7.76103853,1967.9,1967.4,0.48400191]
[1771216727870,0.0011,1967.9,1967.4,0.48400191]
[1771216728078,0.0011,1967.9,1967.5,0.001]
[1771216728277,0.0011,1967.8,1967.5,0.48400191]
[1771216730681,0.0011,1967.8,1967.5,0.001]
[1771216731579,0.0011,1967.8,1967.5,0.48400191]
[1771216734581,0.0011,1967.8,1967.5,0.001]
[1771216736562,0.0011,1967.8,1967.5,0.48400191]
[1771216739893,0.0011,1967.8,1967.6,0.48400191]
[1771216740093,0.0011,1967.7,1967.6,0.48400191]
[1771216740769,0.0011,1968.0,1967.7,0.48300191]
[1771216743670,0.0011,1968.0,1967.8,0.48300191]
[1771216745101,0.0011,1968.1,1967.8,0.48300191]
[1771216752210,0.0011,1968.1,1967.9,0.001]
[1771216752410,0.0011,1968.0,1967.9,0.001]
[1771216753508,0.0011,1968.0,1967.9,0.48400191]
[1771216755105,0.0011,1968.2,1968.0,0.48525569]
[1771216756400,0.0011,1968.2,1968.1,0.48525569]
[1771216756822,0.0011,1968.6,1968.1,0.48525569]
[1771216759894,0.0011,1968.6,1968.3,0.48525569]
[1771216760117,0.0011,1968.9,1968.5,0.48525569]
[1771216762415,0.43887493,1969.1,1968.4,1.61325569]
[1771216762577,0.43777493,1969.0,1968.4,1.128]
[1771216763702,7.76103853,1969.1,1968.4,1.128]
[1771216763703,0.43777493,1968.8,1968.4,1.128]
[1771216764821,0.0011,1968.9,1968.4,1.61325569]
[1771216765626,0.0011,1968.9,1968.5,0.48525569]
[1771216769101,0.0011,1968.9,1968.4,8.88793853]
[1771216769399,0.0011,1968.9,1968.4,1.61325569]
[1771216772719,0.0011,1968.9,1968.5,0.48525569]
[1771216773084,0.0011,1968.9,1968.4,1.128]
[1771216773515,0.0011,1968.9,1968.4,1.61325569]
[1771216777010,0.43887493,1968.9,1968.4,1.128]
[1771216777407,0.43887493,1968.9,1968.3,1.136]
[1771216783336,0.43887493,1968.9,1968.3,1.62125569]
[1771216784415,0.43887493,1968.9,1968.4,0.45993835]
[1771216784627,0.0011,1968.9,1968.4,0.45993835]
[1771216787725,0.0011,1968.9,1968.3,1.136]
[1771216787726,0.43887493,1968.9,1968.3,1.136]
[1771216788519,0.43777493,1968.7,1968.5,0.001]
[1771216788734,8.18908953,1968.6,1968.4,0.001]
[1771216792234,7.7513146,1968.6,1968.4,0.001]
[1771216794437,0.43777493,1968.7,1968.4,0.001]
[1771216797037,8.18908953,1968.6,1968.4,0.001]
[1771216799125,7.7513146,1968.6,1968.4,0.001]
[1771216800244,7.7513146,1968.6,1968.5,0.001]
[1771216800544,0.0011,1968.6,1968.5,0.001]
[1771216802518,8.19018953,1968.6,1968.2,0.001]
[1771216802720,8.18908953,1968.4,1968.0,0.00253886]
[1771216803114,9.41718953,1968.6,1968.0,0.48410089]
[1771216803318,0.0011,1968.6,1968.0,0.48410089]
[1771216803551,0.0011,1968.6,1968.2,0.48156203]
[1771216812859,0.0011,1968.6,1968.3,0.001]
[1771216813151,0.0011,1968.5,1968.3,0.001]
[1771216814526,8.19018953,1968.5,1968.3,0.001]
[1771216814759,0.43777493,1968.4,1968.0,0.00253886]
[1771216815061,0.43777493,1968.2,1968.0,0.00253886]
[1771216815457,7.7513146,1968.3,1968.0,0.00253886]
[1771216815862,0.43777493,1968.2,1968.0,0.00253886]
[1771216816167,0.43777493,1968.4,1968.0,0.00253886]
[1771216817959,0.43777493,1968.2,1968.0,0.00253886]
[1771216818167,7.7513146,1968.3,1968.0,0.00253886]
[1771216818666,8.18908953,1968.3,1968.0,0.00253886]
[1771216819562,9.42108953,1968.3,1968.0,0.00253886]
[1771216822541,0.43777493,1968.2,1968.0,0.00253886]
[1771216825065,0.43777493,1968.2,1968.1,0.001]
[1771216825235,0.43777493,1968.2,1967.9,0.001]
[1771216826562,8.9833146,1968.3,1967.9,0.001]
[1771216829565,9.42108953,1968.3,1967.9,0.001]
[1771216831767,9.42108953,1968.3,1967.8,0.001]
[1771216832772,9.41905716,1968.3,1967.8,0.001]
[1771216833373,8.98128223,1968.3,1967.8,0.45670551]
[1771216836574,8.98128223,1968.3,1967.9,0.001]
[1771216836771,8.98128223,1968.3,1967.9,0.45670551]
[1771216836979,0.0011,1968.2,1967.9,0.45670551]
[1771216846275,0.0011,1968.2,1967.9,0.001]
[1771216854988,0.0011,1968.2,1967.9,0.50040107]
[1771216858894,7.75777153,1968.1,1967.8,0.001]
[1771216860095,7.75777153,1968.1,1968.0,0.001]
[1771216860272,7.75777153,1968.1,1967.8,0.001]
[1771216860605,7.75777153,1968.1,1967.9,0.001]
[1771216860606,8.19554646,1968.1,1967.9,0.001]
[1771216860815,8.19554646,1968.1,1967.7,0.001]
[1771216861599,1.2611,1968.2,1967.7,0.50040107]
[1771216861600,0.0011,1968.2,1967.7,0.50040107]
[1771216861798,1.2631,1968.2,1967.7,0.50040107]
[1771216862605,0.0011,1968.2,1967.7,0.50040107]
[1771216872204,0.0011,1968.2,1967.8,0.001]
[1771216872407,0.0011,1968.1,1967.8,0.50040107]
[1771216885241,0.0011,1968.1,1968.0,0.48315498]
[1771216886649,0.0011,1968.1,1967.9,0.001]
[1771216887753,0.0011,1968.1,1967.9,0.48415498]
[1771216896481,0.0011,1968.1,1967.9,0.001]
[1771216897566,0.0011,1968.0,1967.9,0.001]
[1771216897925,0.0011,1968.0,1967.9,0.48415498]
[1771216905072,0.0011,1968.0,1967.9,0.001]
[1771216909662,0.0011,1968.0,1967.9,0.49092127]
[1771216912271,0.0011,1968.0,1967.9,1.62492127]
[1771216915494,0.0011,1968.0,1967.9,1.135]
[1771216917989,0.0011,1968.0,1967.9,1.62492127]
[1771216919895,0.0011,1968.2,1968.0,0.48992127]
[1771216920363,0.0011,1968.2,1967.9,1.135]
[1771216920871,0.0011,1968.0,1967.9,1.135]
[1771216923270,0.0011,1968.0,1967.9,1.145]
[1771216924287,0.0011,1968.0,1967.9,0.001]
[1771216924602,0.43887493,1968.0,1967.6,1.145]
[1771216925576,0.43887493,1968.0,1967.6,0.001]
[1771216925777,0.43777493,1967.9,1967.6,0.001]
[1771216931702,0.43777493,1967.7,1967.6,0.001]
[1771216931905,0.43777493,1967.7,1967.3,0.001]
[1771216932097,0.43777493,1967.7,1967.3,0.0029]
[1771216933383,0.43777493,1967.7,1967.5,0.001]
[1771216933800,0.43777493,1967.7,1967.4,0.001]
[1771216933993,0.43777493,1967.7,1967.4,0.0029]
[1771216935982,0.43777493,1967.5,1967.4,0.001]
[1771216937292,0.43777493,1967.7,1967.4,0.001]
[1771216937491,1.245,1967.7,1967.4,0.0029]
[1771216937894,0.0011,1967.9,1967.4,0.5005366]
[1771216938978,0.0011,1967.9,1967.4,0.4986366]
[1771216939985,0.0011,1967.9,1967.5,0.0019]
[1771216940925,0.0011,1967.9,1967.5,0.4995366]
[1771216945022,0.0011,1967.9,1967.6,0.4986366]
[1771216945422,0.0011,1967.9,1967.7,0.4976366]
[1771216945591,0.0011,1967.9,1967.7,0.4995366]
[1771216946597,0.0011,1968.2,1967.8,0.4984366]
[1771216946810,0.0011,1968.2,1967.8,0.4976366]
[1771216947004,0.0011,1968.2,1967.9,0.4984366]
[1771216947298,0.0011,1968.2,1967.9,0.4976366]
[1771216947520,0.0011,1968.2,1968.0,0.0008]
[1771216953652,0.43777493,1968.1,1967.6,0.001]
[1771216953804,0.43777493,1968.1,1967.8,0.0008]
[1771216954831,0.0011,1968.2,1967.8,0.0008]
[1771216955022,0.0011,1968.2,1967.8,0.4984366]
[1771216956740,0.0011,1968.2,1967.9,0.4984366]
[1771216957122,0.0011,1968.0,1967.9,0.4984366]
[1771216957632,0.0003,1968.0,1967.9,0.4976366]
[1771216960350,0.0011,1968.2,1967.7,0.4976366]
[1771216960837,0.0011,1968.2,1967.7,1.0]
[1771216961038,0.0011,1968.2,1967.8,0.4976366]
[1771216968969,0.0011,1968.2,1967.9,0.48150197]
[1771216969167,0.0011,1968.1,1967.9,0.48150197]
[1771216970522,0.0011,1968.1,1967.9,0.001]
[1771216977463,0.0011,1968.1,1967.9,0.48150197]
[1771216977669,0.0011,1968.3,1968.0,0.48050197]
[1771216980177,0.0011,1968.3,1967.9,8.90616009]
[1771216980348,0.0011,1968.3,1967.9,1.15]
[1771216981756,0.0011,1968.3,1968.0,0.001]
[1771216982289,0.0011,1968.1,1968.0,0.001]
[1771216996220,0.0011,1968.1,1968.0,0.45730308]
[1771216996396,0.0011,1968.2,1968.0,0.45730308]
[1771216999642,0.0011,1968.2,1968.0,0.001]
[1771217001612,0.43677493,1968.0,1967.7,0.001]
[1771217001779,0.43677493,1968.0,1967.5,0.001]
[1771217001780,0.43677493,1967.9,1967.5,0.001]
[1771217001979,0.43677493,1968.1,1967.5,0.001]
[1771217002424,0.0011,1968.2,1967.5,0.45730308]
[1771217002588,0.43787493,1968.2,1967.5,0.45730308]
[1771217002900,0.0011,1968.2,1967.5,0.45730308]
[1771217003407,0.0011,1968.2,1967.6,1.61130308]
[1771217003989,0.43787493,1968.2,1967.6,1.61130308]
[1771217006107,0.43787493,1968.2,1967.7,0.001]
[1771217006302,0.0011,1968.1,1967.7,0.001]
[1771217009622,0.0011,1968.1,1967.7,0.45730308]
[1771217013922,0.0011,1968.1,1967.7,0.001]
[1771217014413,0.43787493,1968.1,1967.7,0.001]
[1771217018597,0.0011,1968.1,1967.7,0.50761362]
[1771217018924,0.0011,1968.1,1967.7,0.45730308]
[1771217022097,0.0011,1968.1,1967.7,0.001]
[1771217028835,0.0011,1968.0,1967.7,0.001]
[1771217030339,0.0011,1968.0,1967.7,0.47332329]
[1771217036345,0.43787493,1968.0,1967.5,1.20830542]
[1771217036520,0.0011,1968.0,1967.5,0.47332329]
[1771217036725,0.0011,1968.0,1967.5,0.52361848]
[1771217040644,0.0011,1968.0,1967.7,0.47232329]
[1771217041119,0.0011,1967.9,1967.6,0.001]
[1771217041525,0.0011,1967.9,1967.6,1.164]
[1771217043542,0.43787493,1967.9,1967.6,1.164]
[1771217043841,0.43787493,1967.9,1967.6,0.001]
[1771217044907,0.0011,1967.9,1967.6,0.001]
[1771217045815,0.43787493,1967.9,1967.6,0.001]
[1771217048616,0.43677493,1967.8,1967.6,0.001]
[1771217052854,0.43677493,1967.8,1967.7,0.001]
[1771217053147,0.43787493,1967.8,1967.7,0.001]
[1771217055054,0.43787493,1967.8,1967.6,0.001]
[1771217055559,0.43787493,1967.8,1967.4,0.001]
[1771217057536,0.0011,1967.8,1967.4,0.001]
[1771217059536,0.43677493,1967.7,1967.4,0.001]
[1771217061834,8.19330907,1967.6,1967.4,0.001]
[1771217062948,0.0011,1967.8,1967.4,0.001]
[1771217063479,0.0011,1967.8,1967.4,0.49026736]
[1771217063957,0.43787493,1967.8,1967.4,0.001]
[1771217064657,0.43787493,1967.8,1967.5,0.001]
[1771217064857,0.0011,1967.7,1967.5,0.001]
[1771217071789,8.19440907,1967.7,1967.5,0.001]
[1771217073387,0.43677493,1967.6,1967.5,0.001]
[1771217073691,1.66477493,1967.6,1967.3,0.001]
[1771217074584,1.228,1967.6,1967.3,0.001]
[1771217075396,1.228,1967.6,1967.3,0.49026736]
[1771217076469,8.19440907,1967.7,1967.3,0.001]
[1771217076993,8.19440907,1967.7,1967.4,0.001]
[1771217077191,0.43787493,1967.6,1967.2,0.001]
[1771217077390,0.0011,1967.6,1967.2,0.001]
[1771217077591,0.0011,1967.6,1967.2,0.49026736]
[1771217082765,0.0011,1967.6,1967.2,0.001]
[1771217089174,0.0011,1967.6,1967.3,0.001]
[1771217089375,0.0011,1967.5,1967.3,0.001]
[1771217101220,0.0011,1967.5,1967.4,0.001]
[1771217106331,0.0011,1967.5,1967.4,0.46603539]
[1771217109332,0.0011,1967.5,1967.4,0.001]
[1771217121510,8.20076516,1967.5,1967.3,0.001]
[1771217123830,7.76399023,1967.5,1967.3,0.001]
[1771217124031,0.0011,1967.5,1967.3,0.001]
[1771217125043,0.0011,1967.5,1967.4,0.001]
[1771217126327,0.0011,1967.5,1967.3,0.001]
[1771217128052,0.43677493,1967.4,1966.8,0.4625977]
[1771217128216,0.46364525,1967.2,1966.5,0.4625977]
[1771217128417,7.76552909,1968.0,1967.1,0.4625977]
[1771217128617,0.46364525,1967.9,1967.1,0.4625977]
[1771217128812,7.76289023,1967.8,1967.1,0.4625977]
[1771217129038,9.49253548,1967.8,1967.1,0.4625977]
[1771217130762,9.02889023,1967.8,1967.1,0.4625977]
[1771217130929,1.266,1967.8,1967.1,0.4625977]
[1771217131133,0.00263886,1968.0,1967.3,0.4625977]
[1771217135537,0.00263886,1968.0,1967.5,0.4625977]
[1771217137265,0.0011,1967.9,1967.4,0.001]
[1771217138067,0.0011,1967.9,1967.4,0.4635977]
[1771217138614,0.0011,1967.9,1967.5,0.4625977]
[1771217138813,0.0011,1967.9,1967.5,0.51342102]
[1771217143402,0.0011,1967.9,1967.6,0.4625977]
[1771217145873,0.00263886,1968.0,1967.7,0.47809704]
[1771217146168,0.00263886,1968.0,1967.9,0.47809704]
[1771217146710,0.0011,1968.2,1967.9,0.47809704]
[1771217149419,0.0011,1968.0,1967.9,0.47809704]
[1771217149974,0.0011,1968.0,1967.7,0.47809704]
[1771217150174,0.0011,1968.0,1967.8,1.144]
[1771217150615,0.0011,1968.0,1967.6,8.24098727]
[1771217150814,0.0011,1968.0,1967.7,1.62209704]
[1771217151916,0.0011,1968.2,1967.9,0.47809704]
[1771217152284,0.0011,1968.2,1967.7,1.62209704]
[1771217153208,0.0011,1968.2,1967.8,0.47809704]
[1771217157806,0.0011,1968.2,1967.7,1.144]
[1771217158428,0.45281201,1968.2,1967.7,1.144]
[1771217161627,0.45281201,1968.2,1967.9,0.001]
[1771217161924,0.0011,1968.1,1967.9,0.001]
[1771217162938,7.75782451,1968.1,1967.6,0.001]
[1771217163110,0.45171201,1967.8,1967.2,1.62809704]
[1771217163640,0.45171201,1967.8,1967.3,0.001]
[1771217165411,0.45171201,1967.6,1967.3,0.001]
[1771217165610,0.45171201,1967.6,1967.1,0.001]
[1771217166624,0.45171201,1967.4,1967.1,0.001]
[1771217169323,7.75672451,1967.5,1966.6,1.15]
[1771217169324,0.45171201,1967.2,1966.6,1.15]
[1771217170228,0.45171201,1967.0,1966.4,0.47809704]
[1771217172644,0.45171201,1967.0,1966.3,0.915]
[1771217172849,0.45171201,1967.0,1966.3,1.39309704]
[1771217173842,0.45171201,1967.0,1966.5,0.001]
[1771217174039,8.21584474,1967.1,1966.5,0.47277771]
[1771217174364,0.45912023,1967.1,1966.5,0.47277771]
[1771217176327,0.45912023,1967.1,1966.5,0.001]
[1771217177049,1.71912023,1967.2,1966.5,0.47277771]
[1771217177359,0.45912023,1967.1,1966.5,0.47277771]
[1771217182030,0.45912023,1967.0,1966.5,0.001]
[1771217185470,1.26,1967.2,1966.5,0.47277771]
[1771217185471,1.71912023,1967.2,1966.5,0.47277771]
[1771217185965,0.45912023,1967.2,1966.5,0.47277771]
[1771217186749,0.45912023,1967.2,1966.6,0.001]
[1771217186955,0.45912023,1967.2,1966.6,0.47277771]
[1771217187140,0.0011,1967.0,1966.6,0.47277771]
[1771217196251,0.0011,1967.3,1967.0,0.47177771]
[1771217197680,0.0011,1967.3,1966.7,8.90472451]
[1771217197681,0.0011,1967.3,1966.8,0.47177771]
[1771217199760,0.46022023,1967.3,1966.8,0.47177771]
[1771217200687,0.0011,1967.2,1966.8,0.47177771]
[1771217203890,0.0011,1967.2,1967.0,0.49948939]
[1771217205465,0.0011,1967.3,1967.0,0.49948939]
[1771217206386,0.0011,1967.5,1967.2,0.45492214]
[1771217206584,0.0011,1967.5,1967.3,0.45492214]
[1771217206977,0.0011,1967.7,1967.4,0.45492214]
[1771217209186,0.0011,1967.7,1967.3,7.75672451]
[1771217209495,0.0011,1967.7,1967.3,8.21164665]
[1771217212397,0.0011,1967.6,1967.3,8.21164665]
[1771217212796,0.0011,1967.6,1967.4,0.45492214]
[1771217212994,0.0011,1967.6,1967.5,1.163]
[1771217220104,0.0011,1967.8,1967.6,0.45492214]
[1771217220413,0.0011,1967.8,1967.5,1.163]
[1771217221400,0.49738327,1967.8,1967.5,1.163]
[1771217222615,0.0011,1967.8,1967.5,1.163]
[1771217223016,0.00263886,1968.0,1967.7,7.75824526]
[1771217223216,0.00263886,1968.0,1967.8,0.45492214]
[1771217225032,0.00263886,1968.0,1967.8,1.62492214]
[1771217225214,0.0011,1968.2,1967.8,1.62492214]
[1771217226695,0.0011,1968.2,1967.9,8.2131674]
[1771217226895,0.0011,1968.2,1968.0,0.45492214]
[1771217227309,0.0011,1968.2,1967.9,7.75824526]
[1771217227529,0.0011,1968.2,1967.9,8.2131674]
[1771217227691,0.0011,1968.2,1968.0,0.45492214]
[1771217228097,0.0011,1968.3,1968.0,0.45492214]
[1771217230406,0.0011,1968.3,1968.1,1.176]
[1771217237103,0.0011,1968.2,1968.1,1.176]
[1771217250752,0.0011,1968.3,1968.1,1.176]
[1771217251974,0.45356652,1968.3,1967.9,0.001]
[1771217254943,0.0011,1968.3,1967.9,0.001]
[1771217255343,0.0011,1968.3,1967.9,0.002]
[1771217255672,0.0011,1968.3,1967.9,0.48009105]
[1771217256574,0.0011,1968.3,1967.9,0.47909105]
[1771217256776,0.0011,1968.3,1968.0,0.001]
[1771217257872,0.0011,1968.3,1968.0,7.75924526]